fUST/lending_fUST_20241025
["ID","MTS","AMOUNT","RATE_DAILY","PERIOD"]
[340785769,1729817438788,-500.0,0.00013698,2]
[340785770,1729817438798,-553.22,0.00013698,2]
[340785771,1729817438809,-460.21579833,0.00013698,2]
[340785772,1729817438820,-500.0,0.00013698,2]
[340785773,1729817438830,-500.0,0.00013698,2]
[340785774,1729817438842,-500.0,0.00013698,2]
[340785775,1729817438853,-1338.39,0.00013698,2]
[340785776,1729817438863,-500.0,0.00013698,2]
[340785777,1729817438874,-476.53601367,0.00013698,2]
[340785778,1729817438885,-500.0,0.00013698,2]
[340785779,1729817438895,-1391.2,0.00013698,2]
[340785780,1729817438906,-500.0,0.00013698,2]
[340785781,1729817438916,-710.84,0.00013698,2]
[340785782,1729817438927,-500.0,0.00013698,2]
[340785783,1729817438939,-1044.82,0.00013698,2]
[340785784,1729817438949,-500.0,0.00013698,2]
[340785785,1729817438960,-772.53,0.00013698,2]
[340785786,1729817438970,-649.05,0.00013698,2]
[340785787,1729817438980,-500.0,0.00013698,2]
[340785788,1729817438991,-440.0,0.00013698,2]
[340785789,1729817439001,-500.0,0.00013698,2]
[340785790,1729817439012,-500.0,0.00013698,2]
[340785791,1729817439024,-500.0,0.00013698,2]
[340785792,1729817439034,-500.0,0.00013698,2]
[340785793,1729817439044,-500.0,0.00013698,2]
[340785794,1729817439054,-500.0,0.00013698,2]
[340785795,1729817439065,-500.0,0.00013698,2]
[340785796,1729817439075,-500.0,0.00013698,2]
[340785797,1729817439085,-827.88,0.00013698,2]
[340785798,1729817439095,-500.0,0.00013698,2]
[340785799,1729817439106,-1600.58,0.00013698,2]
[340785800,1729817439117,-846.51,0.00013698,2]
[340785801,1729817439127,-500.0,0.00013698,2]
[340785802,1729817439138,-500.0,0.00013698,2]
[340785803,1729817439148,-517.36833883,0.00013698,2]
[340785804,1729817439158,-500.0,0.00013698,2]
[340785805,1729817439168,-500.0,0.00013698,2]
[340785806,1729817439179,-500.0,0.00013698,2]
[340785807,1729817439190,-914.21,0.00013698,2]
[340785808,1729817439200,-223.96758902,0.00013698,2]
[340785809,1729817439212,-1168.04,0.00013698,2]
[340785810,1729817439222,-500.0,0.00013698,2]
[340785811,1729817439235,-500.0,0.00013698,2]
[340785812,1729817439246,-500.0,0.00013698,2]
[340785813,1729817439256,-500.0,0.00013698,2]
[340785814,1729817439268,-500.0,0.00013698,2]
[340785815,1729817439278,-678.76,0.00013698,2]
[340785816,1729817439288,-500.0,0.00013698,2]
[340785817,1729817439298,-500.0,0.00013698,2]
[340785818,1729817439308,-500.0,0.00013698,2]
[340785819,1729817439319,-151.0,0.00013698,2]
[340785820,1729817439329,-151.0,0.00013698,2]
[340785821,1729817439340,-151.0,0.00013698,2]
[340785822,1729817439350,-151.0,0.00013698,2]
[340785823,1729817439360,-500.0,0.00013698,2]
[340785824,1729817439371,-500.0,0.00013698,2]
[340785825,1729817439381,-504.01211603,0.00013698,2]
[340785826,1729817439391,-500.0,0.00013698,2]
[340785827,1729817439402,-500.0,0.00013698,2]
[340785828,1729817439412,-500.0,0.00013698,2]
[340785829,1729817439423,-689.64,0.00013698,2]
[340785830,1729817439433,-500.0,0.00013698,2]
[340785831,1729817439443,-500.0,0.00013698,2]
[340785833,1729817439454,-151.0,0.00013698,2]
[340785834,1729817439465,-151.0,0.00013698,2]
[340785835,1729817439475,-536.97410494,0.00013698,2]
[340785837,1729817439485,-173.925541,0.00013698,2]
[340785839,1729817439497,-830.12,0.00013698,2]
[340785841,1729817439508,-174.728954,0.00013698,2]
[340785844,1729817439520,-174.728954,0.00013698,2]
[340785846,1729817439530,-174.728954,0.00013698,2]
[340785848,1729817439540,-500.0,0.00013698,2]
[340785849,1729817439550,-174.728954,0.00013698,2]
[340785850,1729817439560,-174.728954,0.00013698,2]
[340785851,1729817439570,-500.0,0.00013698,2]
[340785852,1729817439579,-174.728954,0.00013698,2]
[340785853,1729817439588,-360.06525558,0.00013698,2]
[340785854,1729817439601,-1554.73,0.00013698,2]
[340785855,1729817439610,-500.0,0.00013698,2]
[340785856,1729817439619,-500.0,0.00013698,2]
[340785857,1729817439628,-500.0,0.00013698,2]
[340785858,1729817439637,-500.0,0.00013698,2]
[340785859,1729817439647,-500.0,0.00013698,2]
[340785860,1729817439656,-500.0,0.00013698,2]
[340785861,1729817439665,-500.0,0.00013698,2]
[340785862,1729817439674,-965.4,0.00013698,2]
[340785864,1729817439684,-500.0,0.00013698,2]
[340785865,1729817439693,-500.0,0.00013698,2]
[340785867,1729817439702,-647.75,0.00013698,2]
[340785868,1729817439970,-500.0,0.00013698,2]
[340785869,1729817439989,-793.45,0.00013698,2]
[340785870,1729817440002,-500.0,0.00013698,2]
[340785871,1729817440011,-151.0,0.00013698,2]
[340785872,1729817440022,-151.0,0.00013698,2]
[340785873,1729817440032,-248.79080949,0.00013698,2]
[340785874,1729817440042,-1300.54,0.00013698,2]
[340785875,1729817440054,-500.0,0.00013698,2]
[340785876,1729817440064,-500.0,0.00013698,2]
[340785877,1729817440075,-500.0,0.00013698,2]
[340785878,1729817440086,-500.0,0.00013698,2]
[340785879,1729817440097,-516.81,0.00013698,2]
[340785880,1729817440106,-500.0,0.00013698,2]
[340785881,1729817440116,-500.0,0.00013698,2]
[340785882,1729817440128,-597.51869157,0.00013698,2]
[340785883,1729817440137,-400.40102105,0.00013698,2]
[340785884,1729817440147,-635.55,0.00013698,2]
[340785885,1729817440156,-502.43800191,0.00013698,2]
[340785886,1729817440166,-500.0,0.00013698,2]
[340785887,1729817440176,-500.0,0.00013698,2]
[340785888,1729817440185,-1023.85,0.00013698,2]
[340785889,1729817440194,-500.0,0.00013698,2]
[340785890,1729817440203,-151.0,0.00013698,2]
[340785891,1729817440213,-151.0,0.00013698,2]
[340785892,1729817440226,-151.0,0.00013698,2]
[340785893,1729817440235,-151.0,0.00013698,2]
[340785894,1729817440245,-560.28,0.00013698,2]
[340785895,1729817440255,-151.0,0.00013698,2]
[340785896,1729817440266,-151.0,0.00013698,2]
[340785897,1729817440276,-151.0,0.00013698,2]
[340785898,1729817440286,-504.85714748,0.00013698,2]
[340785899,1729817440295,-151.0,0.00013698,2]
[340785900,1729817440305,-500.0,0.00013698,2]
[340785901,1729817440315,-1327.68,0.00013698,2]
[340785902,1729817440326,-904.38,0.00013698,2]
[340785903,1729817440335,-902.99,0.00013698,2]
[340785904,1729817440346,-699.82,0.00013698,2]
[340785905,1729817440357,-500.0,0.00013698,2]
[340785906,1729817440366,-500.0,0.00013698,2]
[340785907,1729817440376,-500.0,0.00013698,2]
[340785908,1729817440386,-500.0,0.00013698,2]
[340785909,1729817440396,-151.0,0.00013698,2]
[340785910,1729817440407,-151.0,0.00013698,2]
[340785911,1729817440418,-151.0,0.00013698,2]
[340785912,1729817440428,-500.0,0.00013698,2]
[340785913,1729817440438,-151.0,0.00013698,2]
[340785914,1729817440449,-213.444807,0.00013698,2]
[340785915,1729817440459,-500.0,0.00013698,2]
[340785916,1729817440469,-500.0,0.00013698,2]
[340785917,1729817440480,-500.0,0.00013698,2]
[340785918,1729817440491,-500.0,0.00013698,2]
[340785919,1729817440502,-2431.1,0.00013698,2]
[340785920,1729817440511,-500.0,0.00013698,2]
[340785921,1729817440523,-500.0,0.00013698,2]
[340785922,1729817440532,-500.0,0.00013698,2]
[340785923,1729817440543,-1542.64,0.00013698,2]
[340785924,1729817440553,-500.0,0.00013698,2]
[340785925,1729817440564,-500.0,0.00013698,2]
[340785926,1729817440574,-500.0,0.00013698,2]
[340785927,1729817440583,-500.0,0.00013698,2]
[340785928,1729817440593,-785.86,0.00013698,2]
[340785929,1729817440605,-500.0,0.00013698,2]
[340785930,1729817440615,-500.0,0.00013698,2]
[340785931,1729817440624,-500.0,0.00013698,2]
[340785932,1729817440636,-500.0,0.00013698,2]
[340785933,1729817440649,-500.0,0.00013698,2]
[340785934,1729817440660,-1356.49,0.00013698,2]
[340785935,1729817440669,-561.44923914,0.00013698,2]
[340785936,1729817440679,-1612.41,0.00013698,2]
[340785937,1729817440690,-857.01,0.00013698,2]
[340785938,1729817440701,-500.0,0.00013698,2]
[340785939,1729817440712,-500.0,0.00013698,2]
[340785940,1729817440722,-563.5327737,0.00013698,2]
[340785941,1729817440734,-75.51211828,0.00013698,2]
[340785942,1729817440971,-424.48788172,0.00013698,2]
[340785943,1729817440981,-304.290504,0.00013698,2]
[340785944,1729817440991,-304.290504,0.00013698,2]
[340785945,1729817441001,-500.0,0.00013698,2]
[340785946,1729817441011,-304.290504,0.00013698,2]
[340785947,1729817441022,-304.290504,0.00013698,2]
[340785948,1729817441031,-304.290504,0.00013698,2]
[340785949,1729817441041,-500.0,0.00013698,2]
[340785950,1729817441051,-304.290504,0.00013698,2]
[340785951,1729817441060,-500.0,0.00013698,2]
[340785952,1729817441070,-574.43,0.00013698,2]
[340785953,1729817441079,-576.40457011,0.00013698,2]
[340785954,1729817441089,-500.0,0.00013698,2]
[340785955,1729817441098,-565.86678767,0.00013698,2]
[340785956,1729817441110,-151.0,0.00013698,2]
[340785957,1729817441120,-151.0,0.00013698,2]
[340785958,1729817441132,-926.45,0.00013698,2]
[340785959,1729817441142,-775.89,0.00013698,2]
[340785960,1729817441151,-819.17,0.00013698,2]
[340785961,1729817441160,-500.0,0.00013698,2]
[340785962,1729817441170,-1164.19,0.00013698,2]
[340785963,1729817441180,-500.0,0.00013698,2]
[340785964,1729817441190,-1730.51,0.00013698,2]
[340785965,1729817441199,-832.9,0.00013698,2]
[340785966,1729817441208,-500.0,0.00013698,2]
[340785967,1729817441218,-500.0,0.00013698,2]
[340785968,1729817441228,-500.0,0.00013698,2]
[340785969,1729817441237,-500.0,0.00013698,2]
[340785970,1729817441246,-1624.83,0.00013698,2]
[340785971,1729817441256,-3386.55,0.00013698,2]
[340785972,1729817441266,-500.0,0.00013698,2]
[340785973,1729817441276,-500.0,0.00013698,2]
[340785974,1729817441285,-160.0,0.00013698,2]
[340785975,1729817441295,-2908.16,0.00013698,2]
[340785976,1729817441303,-151.0,0.00013698,2]
[340785977,1729817441313,-151.0,0.00013698,2]
[340785978,1729817441322,-500.0,0.00013698,2]
[340785979,1729817441331,-151.0,0.00013698,2]
[340785980,1729817441341,-500.0,0.00013698,2]
[340785981,1729817441350,-500.0,0.00013698,2]
[340785982,1729817441360,-151.0,0.00013698,2]
[340785983,1729817441369,-151.0,0.00013698,2]
[340785984,1729817441378,-151.0,0.00013698,2]
[340785985,1729817441387,-1674.58,0.00013698,2]
[340785986,1729817441397,-500.0,0.00013698,2]
[340785987,1729817441406,-1262.59,0.00013698,2]
[340785988,1729817441415,-500.0,0.00013698,2]
[340785989,1729817441425,-2785.01,0.00013698,2]
[340785990,1729817441434,-151.0,0.00013698,2]
[340785991,1729817441444,-151.0,0.00013698,2]
[340785992,1729817441453,-500.0,0.00013698,2]
[340785993,1729817441462,-151.0,0.00013698,2]
[340785994,1729817441471,-709.38,0.00013698,2]
[340785995,1729817441481,-1509.75,0.00013698,2]
[340785996,1729817441490,-604.15,0.00013698,2]
[340785997,1729817441499,-304.02111749,0.00013698,2]
[340785998,1729817441508,-500.0,0.00013698,2]
[340785999,1729817441518,-470.17858247,0.00013698,2]
[340786000,1729817441527,-500.0,0.00013698,2]
[340786001,1729817441537,-500.0,0.00013698,2]
[340786002,1729817441546,-500.0,0.00013698,2]
[340786003,1729817441555,-807.68,0.00013698,2]
[340786004,1729817441564,-500.0,0.00013698,2]
[340786005,1729817441574,-726.18,0.00013698,2]
[340786006,1729817441583,-500.0,0.00013698,2]
[340786007,1729817441594,-500.0,0.00013698,2]
[340786008,1729817441605,-500.0,0.00013698,2]
[340786009,1729817441614,-740.950399,0.00013698,2]
[340786010,1729817441623,-740.950399,0.00013698,2]
[340786011,1729817441632,-740.950399,0.00013698,2]
[340786012,1729817441641,-500.0,0.00013698,2]
[340786013,1729817441651,-256.43008793,0.00013698,2]
[340786014,1729817441661,-601.61,0.00013698,2]
[340786015,1729817441670,-500.0,0.00013698,2]
[340786016,1729817441680,-500.0,0.00013698,2]
[340786017,1729817441689,-840.04,0.00013698,2]
[340786018,1729817441698,-342.84866657,0.00013698,2]
[340786019,1729817441707,-744.01,0.00013698,2]
[340786020,1729817441717,-528.2,0.00013698,2]
[340786021,1729817441727,-734.02,0.00013698,2]
[340786022,1729817441736,-616.5,0.00013698,2]
[340786023,1729817441745,-1210.56,0.00013698,2]
[340786024,1729817441754,-2090.89,0.00013698,2]
[340786025,1729817441763,-500.0,0.00013698,2]
[340786026,1729817441773,-481.20192361,0.00013698,2]
[340786027,1729817441782,-500.0,0.00013698,2]
[340786028,1729817441791,-419.481326,0.00013698,2]
[340786029,1729817441800,-419.481326,0.00013698,2]
[340786030,1729817441810,-500.0,0.00013698,2]
[340786031,1729817441819,-419.481326,0.00013698,2]
[340786032,1729817441829,-797.6,0.00013698,2]
[340786033,1729817441838,-419.481326,0.00013698,2]
[340786034,1729817441847,-419.481326,0.00013698,2]
[340786035,1729817441857,-500.0,0.00013698,2]
[340786036,1729817441866,-419.481326,0.00013698,2]
[340786037,1729817441876,-1490.92,0.00013698,2]
[340786038,1729817441885,-725.72065184,0.00013698,2]
[340786039,1729817442111,-325.63934816,0.00013698,2]
[340786040,1729817442120,-151.0,0.00013698,2]
[340786041,1729817442131,-1110.31,0.00013698,2]
[340786042,1729817442143,-151.0,0.00013698,2]
[340786043,1729817442154,-151.0,0.00013698,2]
[340786044,1729817442166,-151.0,0.00013698,2]
[340786045,1729817442176,-443.69700023,0.00013698,2]
[340786046,1729817442185,-500.0,0.00013698,2]
[340786047,1729817442194,-500.0,0.00013698,2]
[340786048,1729817442206,-1638.18,0.00013698,2]
[340786049,1729817442216,-500.0,0.00013698,2]
[340786050,1729817442228,-151.0,0.00013698,2]
[340786051,1729817442239,-151.0,0.00013698,2]
[340786052,1729817442248,-151.0,0.00013698,2]
[340786053,1729817442258,-666.66,0.00013698,2]
[340786054,1729817442268,-151.0,0.00013698,2]
[340786055,1729817442280,-151.0,0.00013698,2]
[340786056,1729817442292,-151.0,0.00013698,2]
[340786057,1729817442302,-1476.39,0.00013698,2]
[340786058,1729817442312,-500.0,0.00013698,2]
[340786059,1729817442322,-500.0,0.00013698,2]
[340786060,1729817442332,-500.0,0.00013698,2]
[340786061,1729817442342,-500.0,0.00013698,2]
[340786062,1729817442354,-151.43807,0.00013698,2]
[340786063,1729817442364,-940.38,0.00013698,2]
[340786064,1729817442373,-500.0,0.00013698,2]
[340786065,1729817442382,-500.0,0.00013698,2]
[340786066,1729817442392,-151.0,0.00013698,2]
[340786067,1729817442401,-151.0,0.00013698,2]
[340786068,1729817442411,-155.541138,0.00013698,2]
[340786069,1729817442420,-500.0,0.00013698,2]
[340786070,1729817442430,-532.99,0.00013698,2]
[340786071,1729817442440,-218.885528,0.00013698,2]
[340786072,1729817442449,-1230.56,0.00013698,2]
[340786073,1729817442459,-500.0,0.00013698,2]
[340786074,1729817442470,-494.21347529,0.00013698,2]
[340786075,1729817442480,-950.08,0.00013698,2]
[340786076,1729817442490,-899.98,0.00013698,2]
[340786078,1729817442500,-770.99,0.00013698,2]
[340786080,1729817442510,-2033.9,0.00013698,2]
[340786081,1729817442521,-500.0,0.00013698,2]
[340786082,1729817442530,-1028.18,0.00013698,2]
[340786083,1729817442540,-151.0,0.00013698,2]
[340786084,1729817442551,-151.0,0.00013698,2]
[340786085,1729817442562,-151.0,0.00013698,2]
[340786086,1729817442572,-151.0,0.00013698,2]
[340786087,1729817442581,-500.0,0.00013698,2]
[340786088,1729817442590,-500.0,0.00013698,2]
[340786089,1729817442602,-500.0,0.00013698,2]
[340786090,1729817442611,-211.920085,0.00013698,2]
[340786091,1729817442621,-211.920085,0.00013698,2]
[340786092,1729817442630,-500.0,0.00013698,2]
[340786093,1729817442641,-211.920085,0.00013698,2]
[340786095,1729817442650,-597.52,0.00013698,2]
[340786096,1729817442659,-211.920085,0.00013698,2]
[340786097,1729817442669,-500.0,0.00013698,2]
[340786099,1729817442679,-1149.3,0.00013698,2]
[340786101,1729817442689,-211.920085,0.00013698,2]
[340786103,1729817442699,-211.920085,0.00013698,2]
[340786105,1729817442708,-2425.05,0.00013698,2]
[340786107,1729817442718,-211.920085,0.00013698,2]
[340786109,1729817442730,-500.0,0.00013698,2]
[340786111,1729817442739,-211.920085,0.00013698,2]
[340786113,1729817442750,-500.0,0.00013698,2]
[340786115,1729817442759,-500.0,0.00013698,2]
[340786118,1729817442770,-559.82,0.00013698,2]
[340786120,1729817442779,-1412.62,0.00013698,2]
[340786122,1729817442788,-153.732128,0.00013698,2]
[340786125,1729817442798,-500.0,0.00013698,2]
[340786126,1729817442807,-153.732128,0.00013698,2]
[340786127,1729817442816,-153.732128,0.00013698,2]
[340786128,1729817442826,-153.732128,0.00013698,2]
[340786129,1729817442835,-151.0,0.00013698,2]
[340786130,1729817442846,-679.12,0.00013698,2]
[340786131,1729817442858,-151.0,0.00013698,2]
[340786132,1729817442868,-151.0,0.00013698,2]
[340786133,1729817442878,-151.0,0.00013698,2]
[340786135,1729817442890,-841.65,0.00013698,2]
[340786136,1729817442900,-153.732128,0.00013698,2]
[340786137,1729817442911,-151.0,0.00013698,2]
[340786138,1729817442920,-153.732128,0.00013698,2]
[340786139,1729817442931,-901.98,0.00013698,2]
[340786140,1729817442942,-153.732128,0.00013698,2]
[340786141,1729817442953,-153.732128,0.00013698,2]
[340786143,1729817442964,-954.31,0.00013698,2]
[340786145,1729817442974,-2210.42,0.00013698,2]
[340786146,1729817442983,-500.0,0.00013698,2]
[340786147,1729817442994,-500.0,0.00013698,2]
[340786148,1729817443006,-500.0,0.00013698,2]
[340786149,1729817443015,-232.49,0.00013698,2]
[340786150,1729817443027,-500.0,0.00013698,2]
[340786151,1729817443037,-957.96,0.00013698,2]
[340786152,1729817443046,-189.77685817,0.00013698,2]
[340786153,1729817443056,-500.0,0.00013698,2]
[340786154,1729817443066,-321.43903898,0.00013698,2]
[340786155,1729817443077,-949.87,0.00013698,2]
[340786156,1729817443088,-1240.95,0.00013698,2]
[340786157,1729817443099,-783.08,0.00013698,2]
[340786158,1729817443110,-1126.2,0.00013698,2]
[340786159,1729817443121,-1106.68,0.00013698,2]
[340786163,1729817443291,-500.0,0.00013698,2]
[340786164,1729817443302,-1639.83,0.00013698,2]
[340786165,1729817443311,-489.38846364,0.00013698,2]
[340786166,1729817443322,-151.0,0.00013698,2]
[340786167,1729817443332,-151.0,0.00013698,2]
[340786168,1729817443341,-207.029775,0.00013698,2]
[340786169,1729817443352,-207.029775,0.00013698,2]
[340786170,1729817443365,-976.99,0.00013698,2]
[340786171,1729817443376,-1095.82,0.00013698,2]
[340786172,1729817443385,-207.029775,0.00013698,2]
[340786173,1729817443399,-207.029775,0.00013698,2]
[340786174,1729817443409,-500.0,0.00013698,2]
[340786175,1729817443421,-207.029775,0.00013698,2]
[340786176,1729817443432,-207.029775,0.00013698,2]
[340786177,1729817443441,-207.029775,0.00013698,2]
[340786178,1729817443451,-207.029775,0.00013698,2]
[340786179,1729817443463,-151.0,0.00013698,2]
[340786180,1729817443472,-151.0,0.00013698,2]
[340786181,1729817443481,-1369.67,0.00013698,2]
[340786182,1729817443492,-151.0,0.00013698,2]
[340786183,1729817443501,-151.0,0.00013698,2]
[340786184,1729817443512,-562.06,0.00013698,2]
[340786185,1729817443524,-287.7377,0.00013698,2]
[340786186,1729817443533,-517.88,0.00013698,2]
[340786187,1729817443544,-1428.01,0.00013698,2]
[340786188,1729817443554,-20222.44792325,0.00013698,2]
[340786199,1729817520499,168.0,0.000198,60]
[340786207,1729818567951,160.0,0.000198,60]
[340786284,1729818638285,-1644.9312004,0.00012455,2]
[340786285,1729818638296,-458.5252034,0.00012501,2]
[340786286,1729818638306,-564.7590277,0.00012615,2]
[340786287,1729818638316,-300.0,0.00013586,2]
[340786288,1729818638326,-300.0,0.00013586,2]
[340786289,1729818638336,-527.0,0.00013587,2]
[340786290,1729818638347,-293.33378296,0.00013587,2]
[340786291,1729818638359,-857.66621704,0.00013587,2]
[340786292,1729818638374,-1795.00616159,0.00013587,2]
[340786293,1729818638388,-600.99383841,0.00013587,2]
[340786294,1729818638399,-3936.34102743,0.00013588,2]
[340786295,1729818638409,-160.0,0.0001363,2]
[340786296,1729818638418,-469.48215488,0.00013658,2]
[340786297,1729818638429,-500.0,0.00013673,2]
[340786298,1729818638439,-500.0,0.00013673,2]
[340786299,1729818638450,-500.0,0.00013673,2]
[340786300,1729818638461,-500.0,0.00013673,2]
[340786301,1729818638470,-306.11975379,0.00013678,2]
[340786302,1729818638480,-20358.91682221,0.00013678,2]
[340786303,1729818638493,-2150.26370319,0.00013678,2]
[340786304,1729818638503,-3067.39620822,0.00013678,2]
[340786305,1729818638514,-19474.15271524,0.00013688,2]
[340786306,1729818638526,-48053.38886106,0.00013688,2]
[340786307,1729818638535,-9202.18862466,0.00013688,2]
[340786308,1729818638546,-7503.06017514,0.00013689,2]
[340786309,1729818638555,-1022.46540274,0.00013689,2]
[340786310,1729818638565,-231.0,0.0001369,2]
[340786311,1729818638575,-2263.49368647,0.00013697,2]
[340786312,1729818638585,-500.0,0.00013698,2]
[340786313,1729818638596,-500.0,0.00013698,2]
[340786314,1729818638606,-151.0,0.00013698,2]
[340786315,1729818638615,-152.028568,0.00013698,2]
[340786316,1729818638624,-500.0,0.00013698,2]
[340786317,1729818638633,-500.0,0.00013698,2]
[340786318,1729818638643,-500.0,0.00013698,2]
[340786319,1729818638655,-306.24744356,0.00013698,2]
[340786320,1729818638666,-1716.19776588,0.00013698,2]
[340786321,1729818638675,-1716.19776588,0.00013698,2]
[340786322,1729818638685,-1716.19776588,0.00013698,2]
[340786323,1729818638695,-1716.19776588,0.00013698,2]
[340786324,1729818638705,-1716.19776588,0.00013698,2]
[340786325,1729818638714,-1716.19776588,0.00013698,2]
[340786326,1729818638725,-1716.19776588,0.00013698,2]
[340786327,1729818638734,-1716.19776588,0.00013698,2]
[340786328,1729818638744,-1716.19776588,0.00013698,2]
[340786329,1729818638754,-1716.19776588,0.00013698,2]
[340786330,1729818638765,-1716.19776588,0.00013698,2]
[340786331,1729818638775,-1716.19776588,0.00013698,2]
[340786332,1729818638784,-1716.19776588,0.00013698,2]
[340786333,1729818638794,-1716.19776588,0.00013698,2]
[340786334,1729818638804,-1716.19776588,0.00013698,2]
[340786335,1729818638815,-1716.19776588,0.00013698,2]
[340786336,1729818638825,-1716.19776588,0.00013698,2]
[340786337,1729818638836,-1716.19776588,0.00013698,2]
[340786338,1729818638846,-1716.19776588,0.00013698,2]
[340786339,1729818638856,-1716.19776588,0.00013698,2]
[340786340,1729818638866,-1716.19776588,0.00013698,2]
[340786341,1729818638875,-1716.19776588,0.00013698,2]
[340786342,1729818638885,-1716.19776588,0.00013698,2]
[340786343,1729818638895,-500.0,0.00013698,2]
[340786344,1729818638905,-489.38846364,0.00013698,2]
[340786345,1729818638916,-500.0,0.00013698,2]
[340786346,1729818638929,-443.69700023,0.00013698,2]
[340786347,1729818638939,-500.0,0.00013698,2]
[340786348,1729818638950,-500.0,0.00013698,2]
[340786349,1729818638961,-594.65664716,0.00013698,2]
[340786350,1729818638970,-500.0,0.00013698,2]
[340786351,1729818638979,-458.75942194,0.00013698,2]
[340786352,1729818638989,-406.05938051,0.00013698,2]
[340786353,1729818638999,-500.0,0.00013698,2]
[340786354,1729818639009,-500.0,0.00013698,2]
[340786355,1729818639019,-500.0,0.00013698,2]
[340786356,1729818639030,-151.0,0.00013698,2]
[340786357,1729818639041,-202.959414,0.00013698,2]
[340786358,1729818639052,-151.0,0.00013698,2]
[340786359,1729818639062,-288.203003,0.00013698,2]
[340786360,1729818639071,-865.37,0.00013698,2]
[340786361,1729818639081,-500.0,0.00013698,2]
[340786362,1729818639091,-500.0,0.00013698,2]
[340786363,1729818639101,-300.89049391,0.00013698,2]
[340786364,1729818639110,-500.0,0.00013698,2]
[340786365,1729818639119,-500.0,0.00013698,2]
[340786366,1729818639131,-151.0,0.00013698,2]
[340786367,1729818639142,-151.0,0.00013698,2]
[340786368,1729818639155,-419.38174921,0.00013698,2]
[340786369,1729818639164,-500.0,0.00013698,2]
[340786370,1729818639175,-500.0,0.00013698,2]
[340786371,1729818639185,-232.11165422,0.00013698,2]
[340786372,1729818639195,-500.0,0.00013698,2]
[340786373,1729818639205,-500.0,0.00013698,2]
[340786374,1729818639215,-550.5,0.00013698,2]
[340786375,1729818639225,-500.0,0.00013698,2]
[340786376,1729818639236,-171.31714138,0.00013698,2]
[340786377,1729818639248,-743.56,0.00013698,2]
[340786378,1729818639271,-785.03,0.00013698,2]
[340786379,1729818639287,-41.48648034,0.00013698,2]
[340786380,1729818639306,-458.51351966,0.00013698,2]
[340786381,1729818639318,-690.21148534,0.00013698,2]
[340786382,1729818639331,-197.63851466,0.00013698,2]
[340786383,1729818639343,-500.0,0.00013698,2]
[340786384,1729818639354,-391.81748654,0.00013698,2]
[340786385,1729818639367,-110.8389029,0.00013698,2]
[340786386,1729818639377,-500.0,0.00013698,2]
[340786387,1729818639390,-469.40109675,0.00013698,2]
[340786388,1729818639404,-328.79890325,0.00013698,2]
[340786389,1729818639414,-500.0,0.00013698,2]
[340786390,1729818639424,-500.0,0.00013698,2]
[340786391,1729818639436,-153.732128,0.00013698,2]
[340786392,1729818639447,-153.732128,0.00013698,2]
[340786393,1729818639458,-500.0,0.00013698,2]
[340786394,1729818639467,-1557.13,0.00013698,2]
[340786395,1729818639478,-153.732128,0.00013698,2]